bitfinex-derivatives/quotes_ETHF0:USTF0_20260115
["timestamp","ask_amount","ask_price","bid_price","bid_amount"]
[1768436410334,0.94382038,3342.6,3341.3,3.33669599]
[1768436410630,0.0044831,3342.7,3341.3,3.33669599]
[1768436410631,0.94382038,3342.5,3341.3,3.33669599]
[1768436410829,0.94382038,3342.4,3341.3,3.33669599]
[1768436411034,0.94382038,3342.3,3341.3,3.33669599]
[1768436411235,0.94382038,3342.2,3341.3,3.33669599]
[1768436411433,0.94382038,3342.1,3341.3,3.33669599]
[1768436411633,0.94382038,3342.0,3341.3,3.33669599]
[1768436411935,0.0044831,3342.7,3341.3,3.33669599]
[1768436412123,0.94477524,3342.6,3341.3,3.33669599]
[1768436412430,0.94477524,3342.5,3341.3,3.33669599]
[1768436412632,0.0044831,3342.7,3341.3,3.33669599]
[1768436412633,0.94477524,3342.4,3341.3,3.33669599]
[1768436412834,0.94477524,3342.3,3341.3,3.33669599]
[1768436413034,0.94477524,3342.2,3341.3,3.33669599]
[1768436413230,0.94477524,3342.1,3341.3,3.33669599]
[1768436413524,0.94477524,3342.0,3341.3,3.33669599]
[1768436413729,0.0044831,3342.7,3341.3,3.33669599]
[1768436413918,0.94485022,3342.6,3341.3,3.33669599]
[1768436414124,0.0044831,3342.7,3341.3,3.33669599]
[1768436414125,0.94485022,3342.5,3341.3,3.33669599]
[1768436414324,0.0044831,3342.7,3341.3,3.33669599]
[1768436414325,0.94485022,3342.4,3341.3,3.33669599]
[1768436414527,0.94485022,3342.3,3341.3,3.33669599]
[1768436414728,0.94485022,3342.2,3341.3,3.33669599]
[1768436414928,0.94485022,3342.1,3341.3,3.33669599]
[1768436415130,0.0044831,3342.7,3341.3,3.33669599]
[1768436415932,0.0044831,3342.7,3341.5,3.31628526]
[1768436416835,0.0044831,3342.7,3341.5,3.46592526]
[1768436417036,0.0044831,3342.7,3341.7,3.31628526]
[1768436421332,0.0044831,3342.7,3341.8,1.168]
[1768436423740,0.0044831,3342.7,3341.6,0.14964]
[1768436425637,0.0044831,3342.7,3341.5,3.33904356]
[1768436427543,0.0044831,3342.7,3341.5,3.48868356]
[1768436427949,0.0044831,3342.7,3341.6,0.14964]
[1768436428137,0.00328473,3343.4,3341.7,3.56940973]
[1768436428339,0.94095774,3343.3,3341.7,3.56940973]
[1768436428539,0.94095774,3343.2,3341.7,3.56940973]
[1768436428747,0.94095774,3343.1,3341.7,3.56940973]
[1768436428948,0.94095774,3343.0,3341.7,3.56940973]
[1768436429248,0.0044831,3342.7,3341.7,3.56940973]
[1768436429632,0.00328473,3343.4,3341.9,4.88142954]
[1768436429838,0.94106533,3343.3,3342.1,3.41977973]
[1768436430139,0.94106533,3343.2,3342.1,3.41977973]
[1768436430340,0.00328473,3343.4,3342.1,3.41977973]
[1768436430548,0.0044831,3343.1,3342.1,3.41977973]
[1768436431455,0.0044831,3343.1,3342.2,0.95504101]
[1768436431751,0.0044831,3343.1,3342.3,0.0044831]
[1768436442553,3.56271367,3344.4,3342.8,3.41977973]
[1768436442753,0.9367127,3344.3,3342.8,4.58777973]
[1768436442958,0.9367127,3344.2,3342.8,4.58777973]
[1768436443156,0.9367127,3344.1,3342.8,4.58777973]
[1768436443358,3.56271367,3344.5,3342.8,4.58777973]
[1768436443552,0.0044831,3344.0,3342.8,4.58777973]
[1768436444057,0.0044831,3344.0,3342.9,3.41977973]
[1768436446058,0.0044831,3344.0,3342.9,3.56935973]
[1768436446262,0.00243795,3344.5,3343.1,3.41977973]
[1768436446453,0.93524567,3344.4,3343.1,3.41977973]
[1768436446652,0.00243795,3344.5,3343.1,3.41977973]
[1768436446957,0.93526682,3344.4,3343.1,3.41977973]
[1768436447147,0.00243795,3344.5,3343.1,3.41977973]
[1768436447349,0.0044831,3344.1,3343.1,3.41977973]
[1768436447546,0.0044831,3344.1,3343.0,1.168]
[1768436452656,0.0044831,3344.1,3343.0,4.68058835]
[1768436454563,0.0044831,3344.1,3343.1,3.51258835]
[1768436455562,0.0044831,3344.1,3343.0,1.168]
[1768436456857,0.0044831,3344.1,3343.0,4.68058835]
[1768436457262,0.0044831,3344.1,3343.1,3.51258835]
[1768436464976,0.00243795,3344.5,3343.1,3.51258835]
[1768436465176,0.93435801,3344.4,3343.3,3.51258835]
[1768436465371,0.00243795,3344.5,3343.3,3.51258835]
[1768436465574,0.93451841,3344.4,3343.3,3.51258835]
[1768436465766,0.00243795,3344.5,3343.3,3.51258835]
[1768436466073,0.0044831,3344.2,3343.3,3.51258835]
[1768436466472,0.00243795,3344.5,3343.3,3.51258835]
[1768436466773,0.93286945,3344.4,3343.3,3.51258835]
[1768436466973,0.00243795,3344.5,3343.3,3.51258835]
[1768436467172,0.93286867,3344.4,3343.3,3.51258835]
[1768436467369,0.00243795,3344.5,3343.3,3.66214835]
[1768436468872,0.00243795,3344.5,3343.3,3.51258835]
[1768436469081,0.00243795,3344.5,3343.4,3.66214835]
[1768436470968,3.58124189,3345.2,3343.6,3.51258835]
[1768436471169,0.93438505,3345.1,3344.1,0.0044831]
[1768436471369,0.93438505,3345.0,3344.1,0.0044831]
[1768436471570,0.93438505,3344.9,3344.1,0.0044831]
[1768436471769,0.93438505,3344.8,3344.1,0.0044831]
[1768436471975,3.58124189,3345.6,3344.1,0.0044831]
[1768436472176,0.00300652,3344.8,3344.1,0.00781815]
[1768436475081,3.58124189,3345.6,3344.1,0.00781815]
[1768436475282,0.93468096,3345.5,3344.1,0.00781815]
[1768436475484,0.93468096,3345.4,3344.1,0.00781815]
[1768436475783,0.93468096,3345.3,3344.1,0.00781815]
[1768436475973,0.93468096,3345.2,3344.1,0.00781815]
[1768436476172,0.93468096,3345.1,3344.1,0.00781815]
[1768436476372,0.00350942,3345.2,3344.1,0.00781815]
[1768436476672,0.93442968,3345.1,3344.1,0.00781815]
[1768436476871,0.00350942,3345.2,3344.1,0.00781815]
[1768436477072,0.93442983,3345.1,3344.1,0.00781815]
[1768436477277,0.00350942,3345.2,3344.1,0.00781815]
[1768436477472,0.93422402,3345.1,3344.1,0.00781815]
[1768436477672,0.00350942,3345.2,3344.1,0.00781815]
[1768436477874,0.93422399,3345.1,3344.1,0.00781815]
[1768436478082,0.00350942,3345.2,3344.1,0.00781815]
[1768436478278,0.93408535,3345.1,3344.1,0.00781815]
[1768436478474,2.13477185,3346.2,3344.4,3.51258835]
[1768436478679,3.58124189,3346.0,3344.4,3.51258835]
[1768436478878,3.58124189,3345.6,3344.1,0.00781815]
[1768436479080,4.51546753,3345.5,3344.1,0.00781815]
[1768436479275,4.51546753,3345.4,3344.1,0.00781815]
[1768436479475,0.93422564,3345.3,3344.1,0.00781815]
[1768436479676,0.93422564,3345.2,3344.1,0.00781815]
[1768436479983,0.93422564,3345.1,3344.1,0.00781815]
[1768436480179,0.93422564,3345.0,3344.1,0.00781815]
[1768436480381,4.26511686,3344.9,3343.1,3.51258835]
[1768436480573,0.93422564,3344.8,3343.4,1.17]
[1768436481274,4.26511686,3344.8,3343.4,1.17]
[1768436481477,0.93422564,3344.7,3343.8,0.0044831]
[1768436488586,4.15260909,3344.7,3343.8,0.0044831]
[1768436488782,3.21838345,3344.5,3343.4,0.00340113]
[1768436488985,3.21838345,3344.0,3342.3,3.38116897]
[1768436489175,0.95442003,3344.1,3342.3,3.38116897]
[1768436489176,3.21838345,3343.8,3342.3,3.38116897]
[1768436489380,0.93422564,3343.7,3342.3,3.38116897]
[1768436489583,0.93422564,3343.7,3342.3,2.991]
[1768436489783,0.0044831,3343.3,3342.7,0.0044831]
[1768436490090,3.21838345,3343.8,3342.7,0.00769391]
[1768436492788,3.22286655,3343.6,3342.7,0.00769391]
[1768436493183,3.22286655,3343.6,3341.8,0.14963]
[1768436494290,3.22286655,3343.6,3342.4,0.0044831]
[1768436494696,0.0044831,3343.6,3342.4,0.0044831]
[1768436501095,3.22286655,3343.6,3342.4,0.0044831]
[1768436509291,0.93347042,3343.5,3342.4,0.0044831]
[1768436509500,3.22286655,3343.6,3342.4,0.0044831]
[1768436509701,4.15184841,3343.5,3342.4,0.0044831]
[1768436509902,3.21838345,3343.5,3342.4,0.0044831]
[1768436511106,4.15109482,3343.4,3342.4,0.0044831]
[1768436511302,4.15109482,3343.4,3341.8,0.00284456]
[1768436511303,4.171954,3343.1,3341.8,0.00284456]
[1768436511505,3.21753397,3343.1,3341.8,0.00284456]
[1768436512101,0.14956,3343.3,3341.8,0.00284456]
[1768436512310,0.14956,3343.3,3342.2,0.0044831]
[1768436512513,3.21753397,3343.5,3342.2,0.0044831]
[1768436512710,0.93383501,3343.4,3342.2,0.0044831]
[1768436512909,3.21753397,3343.5,3342.2,0.0044831]
[1768436513107,0.93501389,3343.4,3342.2,0.0044831]
[1768436513306,3.21753397,3343.5,3342.2,0.0044831]
[1768436513508,0.93525253,3343.4,3342.2,0.0044831]
[1768436513708,3.21753397,3343.5,3342.2,0.0044831]
[1768436514007,0.93525057,3343.4,3342.2,0.0044831]
[1768436514308,4.15306964,3343.3,3342.2,0.0044831]
[1768436514508,3.21753397,3343.3,3342.2,0.0044831]
[1768436516210,0.93632118,3343.2,3342.2,0.0044831]
[1768436516410,3.21753397,3343.3,3342.2,0.0044831]
[1768436516614,0.93632185,3343.2,3342.2,0.0044831]
[1768436516816,3.21753397,3343.3,3342.2,0.0044831]
[1768436517005,0.93632151,3343.2,3342.2,0.0044831]
[1768436517207,3.21753397,3343.3,3342.2,0.0044831]
[1768436517208,0.93690452,3343.1,3342.2,0.0044831]
[1768436517513,4.1543836,3343.0,3341.8,0.95813565]
[1768436517712,0.93684963,3342.9,3341.8,0.95813565]
[1768436518014,3.2203167,3343.0,3341.8,0.95813565]
[1768436518219,0.9368018,3342.9,3341.8,0.95813565]
[1768436518511,0.9368018,3342.8,3341.8,0.95813565]
[1768436518712,3.2203167,3343.0,3342.0,0.0044831]
[1768436518913,0.93756134,3342.9,3342.0,0.0044831]
[1768436519111,0.93756134,3342.8,3342.0,0.0044831]
[1768436519315,3.2203167,3343.0,3342.0,0.0044831]
[1768436519514,0.93768159,3342.9,3342.0,0.0044831]
[1768436519710,0.93768159,3342.8,3342.0,0.0044831]
[1768436519915,1.89297268,3342.7,3342.0,0.0044831]
[1768436520112,0.95529109,3342.7,3341.8,0.00284456]
[1768436520315,3.21753397,3342.8,3341.8,0.00284456]
[1768436520507,0.93769502,3342.7,3341.8,0.00284456]
[1768436520707,3.21753397,3342.8,3341.8,0.00284456]
[1768436520924,5.11051875,3342.7,3341.8,0.00284456]
[1768436521121,0.93769369,3342.6,3341.8,0.00284456]
[1768436521420,0.93769369,3342.5,3341.8,0.00188319]
[1768436521716,0.93769369,3342.4,3341.8,0.00188319]
[1768436522027,0.93769369,3342.3,3341.3,0.01675655]
[1768436522211,4.17282506,3342.7,3341.3,0.01675655]
[1768436522412,0.93702835,3342.6,3341.7,0.00298872]
[1768436522604,0.93702835,3342.5,3341.7,0.00298872]
[1768436522809,0.93702835,3342.4,3341.7,0.00365677]
[1768436523010,4.15456232,3342.3,3341.3,0.01675655]
[1768436523211,4.15456232,3342.2,3341.3,0.01675655]
[1768436523410,4.15456232,3342.1,3341.3,0.01675655]
[1768436523706,3.21753397,3342.1,3341.3,0.01675655]
[1768436523910,3.21753397,3342.1,3341.3,0.01988041]
[1768436524317,4.15534912,3342.0,3340.7,0.95529109]
[1768436524516,0.0044831,3341.7,3340.7,0.95529109]
[1768436525321,0.0044831,3341.7,3340.7,0.95691448]
[1768436527115,0.0044831,3341.7,3341.0,0.95529109]
[1768436527318,3.36714397,3342.4,3341.3,0.95529109]
[1768436527518,0.93627535,3342.3,3341.3,0.95529109]
[1768436527717,0.93627535,3342.2,3341.3,0.95529109]
[1768436527917,0.93627535,3342.1,3341.3,0.95529109]
[1768436528115,3.36714397,3342.4,3341.3,0.95529109]
[1768436528422,0.0044831,3342.2,3341.3,0.95529109]
[1768436528619,0.93610301,3342.1,3341.5,0.0044831]
[1768436529317,0.93610301,3342.1,3341.6,0.95529109]
[1768436529523,0.0044831,3342.2,3341.6,0.95529109]
[1768436529718,0.0044831,3342.2,3341.5,0.0044831]
[1768436530615,3.22201707,3342.2,3340.9,0.95529109]
[1768436530814,0.0044831,3342.2,3341.5,0.95529109]
[1768436531014,0.0044831,3342.2,3341.2,0.95529109]
[1768436531223,0.0044831,3342.2,3341.5,0.95529109]
[1768436531623,0.0044831,3342.2,3341.3,0.95529109]
[1768436533608,3.22201707,3342.2,3341.0,0.95529109]
[1768436533817,3.22201707,3342.2,3340.9,0.95529109]
[1768436534215,3.22201707,3342.2,3341.2,0.95529109]
[1768436536826,0.0044831,3342.2,3341.2,0.95529109]
[1768436538528,4.17282506,3341.5,3340.7,0.00162339]
[1768436539629,3.21753397,3341.5,3340.7,0.00162339]
[1768436540228,0.95529109,3341.3,3339.8,0.95529109]
[1768436540727,0.95529109,3341.3,3340.1,0.95529109]
[1768436541225,3.22591105,3341.2,3340.1,0.00230366]
[1768436541426,0.14965,3341.5,3340.3,0.95529109]
[1768436542021,3.22591105,3341.6,3340.3,0.95529109]
[1768436542221,0.93538895,3341.5,3340.3,0.95529109]
[1768436542425,3.22591105,3341.6,3340.3,0.95529109]
[1768436542625,0.93542886,3341.5,3340.3,0.95529109]
[1768436542826,3.22591105,3341.6,3340.3,0.95529109]
[1768436543021,1.89071834,3341.5,3340.3,0.95529109]
[1768436543225,3.22591105,3341.6,3340.3,0.95529109]
[1768436543426,0.9354579,3341.5,3340.1,0.00230366]
[1768436543628,4.11412926,3341.5,3340.1,0.00230366]
[1768436545233,0.95529109,3341.8,3340.1,0.00230366]
[1768436545234,0.95529109,3341.2,3340.1,0.00230366]
[1768436545636,0.95529109,3340.6,3340.1,0.00230366]
[1768436545834,0.95529109,3340.4,3339.0,4.56921398]
[1768436546136,0.00449001,3340.0,3339.1,0.95529109]
[1768436546332,0.00449001,3340.0,3339.0,4.56921398]
[1768436546728,0.00672466,3340.0,3339.3,0.95529109]
[1768436547824,3.15883817,3340.6,3339.0,4.56921398]
[1768436547825,3.15883817,3341.0,3339.6,0.95529109]
[1768436548025,41.73519085,3340.9,3339.6,0.95529109]
[1768436548224,41.75529109,3340.9,3339.6,0.95529109]
[1768436548524,0.95529109,3340.9,3339.6,0.95529109]
[1768436548724,4.11412926,3340.9,3339.4,0.95529109]
[1768436549024,0.00449001,3340.6,3339.9,0.00449001]
[1768436554041,0.00449001,3340.6,3340.0,0.95529109]
[1768436557133,0.00449001,3340.6,3339.9,0.00449001]
[1768436565146,3.16332818,3340.6,3339.6,0.00223465]
[1768436565453,3.15883817,3340.1,3338.5,0.95529109]
[1768436565744,41.7373382,3340.0,3338.8,0.95529109]
[1768436565947,41.7373382,3340.0,3338.0,0.95529109]
[1768436565948,0.9373382,3339.9,3339.0,0.95529109]
[1768436566143,0.9373382,3339.9,3338.7,0.95529109]
[1768436566349,40.8,3340.0,3338.9,0.95529109]
[1768436567243,0.95529109,3340.3,3338.4,3.46417289]
[1768436567449,0.93769513,3340.2,3338.8,0.95529109]
[1768436567748,41.73769513,3340.1,3338.8,0.95529109]
[1768436567949,0.93769513,3340.0,3338.8,0.95529109]
[1768436568151,0.95529109,3340.3,3338.4,3.46417289]
[1768436568351,0.93800663,3340.2,3338.7,0.95529109]
[1768436568553,0.93800663,3340.1,3338.7,0.95529109]
[1768436568746,0.93800663,3340.0,3338.7,0.95529109]
[1768436568947,40.8,3340.2,3338.7,0.95529109]
[1768436569154,0.93815898,3340.1,3338.7,0.95529109]
[1768436569350,0.93815898,3340.0,3338.7,0.95529109]
[1768436569555,40.8,3340.2,3338.7,0.95529109]
[1768436569757,0.93815489,3340.1,3338.7,0.95529109]
[1768436569945,0.93815489,3340.0,3338.7,0.95529109]
[1768436570254,40.8,3340.2,3338.7,0.95529109]
[1768436570450,0.93821017,3340.1,3339.3,0.95529109]
[1768436570754,3.15883817,3340.4,3339.3,0.95529109]
[1768436570959,0.93825663,3340.3,3339.3,0.95529109]
[1768436571156,0.93825663,3340.2,3338.7,3.4460125]
[1768436571353,3.15883817,3340.4,3339.2,0.95529109]
[1768436571555,0.93835964,3340.3,3339.2,0.95529109]
[1768436571856,0.93835964,3340.2,3339.2,0.95529109]
[1768436572158,0.93836231,3340.1,3339.2,0.95529109]
[1768436572358,3.15883817,3340.4,3339.2,0.95529109]
[1768436572562,0.93845674,3340.3,3339.2,0.95529109]
[1768436572758,0.93845674,3340.2,3339.2,0.95529109]
[1768436572953,0.93845674,3340.1,3339.4,0.95529109]
[1768436573159,3.15867005,3340.8,3339.4,0.95529109]
[1768436573355,0.93873154,3340.5,3339.4,0.95529109]
[1768436573651,0.93873154,3340.4,3339.7,0.95529109]
[1768436573857,0.00286204,3340.9,3340.0,0.95529109]
[1768436574159,0.85422129,3340.5,3339.8,0.95529109]
[1768436574360,0.00286204,3340.9,3339.8,0.95529109]
[1768436575859,0.00286204,3340.9,3339.6,0.95529109]
[1768436578159,0.00286204,3340.9,3339.2,3.4460125]
[1768436578361,0.00286204,3340.9,3339.6,0.95529109]
[1768436579460,0.00286204,3340.9,3339.2,4.40253021]
[1768436579649,0.00286204,3340.9,3339.3,3.4460125]
[1768436580766,0.00286204,3340.9,3339.4,0.14974]
[1768436580953,0.00286204,3340.9,3339.5,3.4460125]
[1768436581767,0.00286204,3340.9,3339.7,3.4460125]
[1768436581953,3.15867005,3341.7,3340.1,4.40253021]
[1768436582871,0.00449001,3341.2,3340.6,0.00449001]
[1768436584768,3.15867005,3342.6,3340.9,0.95651771]
[1768436584956,3.15867005,3342.3,3340.6,0.00449001]
[1768436585463,0.95651771,3342.4,3340.6,0.00449001]
[1768436585464,43.95867005,3342.2,3340.6,0.00449001]
[1768436585656,3.15867005,3342.2,3340.6,0.00449001]
[1768436585854,0.00449001,3341.7,3340.6,0.00449001]
[1768436586868,0.00449001,3341.7,3340.6,3.45050251]
[1768436587069,0.00271438,3342.2,3341.0,3.4460125]
[1768436587259,0.00271438,3342.2,3340.6,0.00449001]
[1768436587769,3.16138443,3342.2,3340.6,1.17549001]
[1768436588367,0.00449001,3341.7,3340.6,1.17549001]
[1768436589759,0.00449001,3341.7,3340.6,2.13200772]
[1768436589959,0.00271438,3342.2,3341.0,0.95651771]
[1768436591962,0.00271438,3342.2,3341.0,4.40253021]
[1768436592277,0.00271438,3342.2,3341.1,3.4460125]
[1768436593070,40.8,3343.1,3341.1,3.4460125]
[1768436593260,0.93673511,3343.0,3341.1,3.4460125]
[1768436593465,40.8,3343.1,3341.1,3.4460125]
[1768436593665,0.00449001,3342.4,3341.1,3.4460125]
[1768436593861,0.00449001,3342.4,3341.4,4.40253021]
[1768436594175,3.15867005,3343.2,3341.5,3.4460125]
[1768436594875,43.95867005,3343.2,3341.5,3.4460125]
[1768436595073,3.16114276,3343.2,3341.5,3.4460125]
[1768436595274,3.16114276,3343.2,3341.5,4.6170125]
[1768436595672,0.00449001,3342.7,3341.5,4.6170125]
[1768436598380,0.00449001,3342.7,3341.5,1.171]
[1768436603383,0.00449001,3342.7,3341.5,4.35436539]
[1768436603683,0.00449001,3342.7,3341.6,3.18336539]
[1768436603884,0.00247271,3343.2,3341.8,4.1398831]
[1768436604677,0.00247271,3343.2,3341.8,3.18336539]
[1768436604978,0.0029703,3342.8,3341.8,3.18336539]
[1768436606883,0.0029703,3342.8,3341.5,0.14964]
[1768436607088,4.10133305,3342.8,3341.4,1.17]
[1768436607378,3.14481534,3342.8,3341.4,1.17]
[1768436608086,0.0029703,3342.8,3341.4,4.35336539]
[1768436609193,0.0029703,3342.8,3341.8,3.18336539]
[1768436609582,0.00247271,3343.2,3341.8,3.18336539]
[1768436609881,0.93980121,3343.1,3341.8,3.18336539]
[1768436610080,0.00247271,3343.2,3341.8,3.18336539]
[1768436610279,0.93978669,3343.1,3341.8,3.18336539]
[1768436610485,0.00247271,3343.2,3341.8,3.18336539]
[1768436610784,0.93974183,3343.1,3341.8,3.18336539]
[1768436610989,0.94021702,3343.0,3341.8,3.18336539]
[1768436611196,0.00247271,3343.2,3341.8,3.18336539]
[1768436611387,0.94020613,3343.1,3341.8,3.33299539]
[1768436611583,0.00247271,3343.2,3341.8,3.33299539]
[1768436614296,0.94137631,3343.1,3341.8,3.33299539]
[1768436614487,0.00247271,3343.2,3341.2,3.18336539]
[1768436614789,3.14184504,3343.0,3341.2,3.18336539]
[1768436614995,0.94132088,3342.9,3341.2,4.35336539]
[1768436615193,0.94132088,3342.8,3341.2,4.35336539]
[1768436615388,0.94132088,3342.7,3341.2,4.35336539]
[1768436615589,3.14184504,3343.0,3341.2,4.35336539]
[1768436615891,0.9415696,3342.9,3341.2,4.35336539]
[1768436616079,0.9415696,3342.8,3341.2,4.35336539]
[1768436616281,0.9415696,3342.7,3341.2,4.35336539]
[1768436616483,0.9415696,3342.6,3341.2,4.35336539]
[1768436616689,3.14184504,3343.0,3341.2,4.35336539]
[1768436616893,0.94142815,3342.9,3341.2,4.35336539]
[1768436617092,0.94142815,3342.8,3341.2,4.35336539]
[1768436617288,0.94142815,3342.7,3341.2,4.35336539]
[1768436617590,0.94142815,3342.6,3341.2,4.35336539]
[1768436617786,0.94142815,3342.5,3341.3,3.18336539]
[1768436617992,0.15204271,3343.2,3341.3,3.18336539]
[1768436618196,0.94182217,3343.1,3341.3,3.18336539]
[1768436618390,0.94182217,3343.0,3341.3,3.18336539]
[1768436618895,0.94182217,3342.9,3341.3,3.18336539]
[1768436619196,0.94182217,3342.8,3341.3,3.18336539]
[1768436619390,0.94182217,3342.7,3341.3,3.18336539]
[1768436619598,0.94182217,3342.6,3341.3,3.18336539]
[1768436619896,0.94182217,3342.5,3341.3,3.18336539]
[1768436620099,3.14184504,3343.1,3341.3,3.18336539]
[1768436620295,0.94228734,3343.0,3341.3,3.18336539]
[1768436620494,0.94228734,3342.9,3341.3,3.18336539]
[1768436620694,0.94228734,3342.8,3341.3,3.18336539]
[1768436620896,0.94228734,3342.7,3341.3,3.18336539]
[1768436621195,0.94228734,3342.6,3341.3,3.18336539]
[1768436621396,0.94228734,3342.5,3341.3,3.18336539]
[1768436621592,3.14184504,3343.1,3341.3,3.18336539]
[1768436621789,0.94242788,3343.0,3341.3,3.18336539]
[1768436622098,0.94242788,3342.9,3341.3,3.18336539]
[1768436622299,0.94242788,3342.8,3341.3,3.18336539]
[1768436622496,0.94242788,3342.7,3341.3,3.18336539]
[1768436622699,0.94242788,3342.6,3341.3,3.18336539]
[1768436622900,0.94242788,3342.5,3341.3,3.18336539]
[1768436623102,0.94242788,3342.4,3341.3,3.18336539]
[1768436623308,3.14184504,3343.0,3341.3,3.18336539]
[1768436623496,0.94264565,3342.9,3341.3,3.18336539]
[1768436623691,0.94264565,3342.8,3341.4,1.17]
[1768436623895,0.94264565,3342.7,3341.4,1.17]
[1768436624096,0.94264565,3342.6,3341.4,1.17]
[1768436624298,0.94264565,3342.5,3341.4,1.17]
[1768436624594,0.94264565,3342.4,3341.4,1.17]
[1768436624794,3.14184504,3343.0,3341.4,1.17]
[1768436625102,0.94268037,3342.9,3341.4,1.17]
[1768436625296,0.94268037,3342.8,3341.4,1.17]
[1768436625498,0.94268037,3342.7,3341.4,1.17]
[1768436625704,0.94268037,3342.6,3341.4,1.17]
[1768436625898,0.94268037,3342.5,3341.4,1.17]
[1768436626101,0.94268037,3342.4,3341.4,1.17]
[1768436626301,3.14184504,3343.0,3341.4,1.17]
[1768436626501,0.94264899,3342.9,3341.4,1.17]
[1768436626700,0.94264899,3342.8,3341.4,1.17]
[1768436626894,0.94264899,3342.7,3341.4,1.17]
[1768436627095,0.94264899,3342.6,3341.4,1.17]
[1768436627396,0.94264899,3342.5,3341.4,1.17]
[1768436627600,0.94264899,3342.4,3341.4,1.17]
[1768436627799,3.14184504,3343.0,3341.4,1.17]
[1768436628004,0.94263568,3342.9,3341.4,1.17]
[1768436628208,0.94263568,3342.8,3341.4,1.17]
[1768436628392,0.94263568,3342.7,3341.4,1.17]
[1768436628695,0.94263568,3342.6,3341.4,1.17]
[1768436628895,0.94263568,3342.5,3341.4,1.17]
[1768436629094,0.94263568,3342.4,3341.4,1.17]
[1768436629294,0.94263568,3342.3,3341.4,1.17]
[1768436629501,0.94263568,3342.2,3341.4,1.17]
[1768436629713,0.94238542,3342.1,3341.0,3.18336539]
[1768436630006,3.14184504,3343.0,3341.2,3.18336539]
[1768436630198,3.14184504,3343.0,3341.2,3.33302539]
[1768436630395,0.00247271,3343.2,3341.2,3.33302539]
[1768436632598,3.33954727,3343.2,3341.2,3.33302539]
[1768436633398,3.33954727,3343.2,3341.4,0.95530307]
[1768436638513,3.33954727,3343.2,3341.4,4.20968378]
[1768436640215,3.33954727,3343.2,3341.5,3.25438071]
[1768436640416,3.33954727,3343.2,3341.8,0.95530307]
[1768436640617,3.33954727,3343.2,3341.5,3.25438071]
[1768436640618,0.00247271,3343.2,3342.2,0.95530307]
[1768436640805,0.00247271,3343.2,3342.4,0.00449001]
[1768436641411,0.00247271,3343.2,3342.5,0.95497609]
[1768436641617,0.00247271,3343.2,3342.5,0.95801162]
[1768436641818,0.93846543,3343.1,3342.5,0.95801162]
[1768436642117,3.33707456,3343.6,3342.8,0.95497609]
[1768436642310,3.33707456,3343.6,3342.6,0.95497609]
[1768436642506,4.29205065,3342.7,3341.2,0.14966]
[1768436642714,4.29205065,3342.6,3340.8,6.24738071]
[1768436642903,3.33707456,3342.5,3340.9,1.17]
[1768436643108,3.33707456,3342.5,3341.3,0.95497609]
[1768436643415,3.33707456,3342.5,3341.1,0.95497609]
[1768436643615,0.00449001,3342.1,3341.5,0.00449001]
[1768436644819,0.00449001,3342.1,3341.5,0.9594661]
[1768436645022,0.00449001,3342.1,3341.7,0.95497609]
[1768436645219,0.00365196,3342.5,3341.7,0.95497609]
[1768436645415,0.00365196,3342.5,3341.5,0.00449001]
[1768436649303,3.34072652,3342.5,3341.5,0.00449001]
[1768436651914,0.00365196,3342.5,3341.5,0.00449001]
[1768436654219,0.00365196,3342.5,3341.5,3.25887072]
[1768436654424,0.14956,3343.3,3341.5,3.25887072]
[1768436654724,0.93700891,3343.2,3341.5,4.7205793]
[1768436654912,0.93700891,3343.1,3341.5,4.7205793]
[1768436655111,0.93700891,3343.0,3341.5,4.7205793]
[1768436655313,0.93700891,3342.9,3341.5,4.7205793]
[1768436655523,0.93700891,3342.8,3341.5,4.7205793]
[1768436655727,0.93700891,3342.7,3341.5,4.7205793]
[1768436656022,0.00330427,3342.9,3341.5,4.7205793]
[1768436656222,0.93697127,3342.8,3341.5,4.7205793]
[1768436656423,0.93697127,3342.7,3341.5,4.7205793]
[1768436656622,0.00330427,3342.9,3341.5,4.7205793]
[1768436656922,0.93698074,3342.8,3341.5,4.7205793]
[1768436657226,0.93698074,3342.7,3341.5,4.7205793]
[1768436657524,0.00330427,3342.9,3341.5,4.7205793]
[1768436657725,0.93702106,3342.8,3341.5,4.7205793]
[1768436657923,0.93702106,3342.7,3341.5,4.7205793]
[1768436658119,0.00330427,3342.9,3341.5,4.7205793]
[1768436658323,0.93701168,3342.8,3341.5,4.7205793]
[1768436658620,0.93701168,3342.7,3341.5,4.7205793]
[1768436658817,0.00330427,3342.9,3341.5,4.7205793]
[1768436659018,0.93702892,3342.8,3341.5,4.7205793]
[1768436659215,0.00330427,3342.9,3341.6,3.25438071]
[1768436659422,0.93704972,3342.8,3341.7,1.17]
[1768436659616,0.93704972,3342.7,3341.7,1.17]
[1768436659815,0.00330427,3342.9,3341.7,1.17]
[1768436660023,0.93702536,3342.8,3341.7,1.17]
[1768436660323,0.93702536,3342.7,3341.7,1.17]
[1768436660529,3.19433704,3342.9,3341.6,1.17]
[1768436660728,0.93695405,3342.8,3341.6,1.17]
[1768436660929,0.93695405,3342.7,3341.6,1.17]
[1768436661123,3.19433704,3342.9,3341.6,1.17]
[1768436661322,0.93692947,3342.8,3341.6,1.17]
[1768436661525,0.93692947,3342.7,3341.6,1.17]
[1768436661719,0.00330427,3342.9,3341.6,1.17]
[1768436661924,0.93695519,3342.8,3341.6,1.17]
[1768436662225,0.93695519,3342.7,3341.6,1.17]
[1768436662424,0.00330427,3342.9,3341.6,1.17]
[1768436662626,3.43110285,3343.3,3341.7,0.14963]
[1768436662827,3.43110285,3343.3,3341.7,3.3905998]
[1768436663824,3.43455261,3343.3,3341.7,3.3905998]
[1768436664521,0.00344976,3343.3,3341.7,3.3905998]
[1768436664835,3.43455261,3343.3,3341.7,0.14963]
[1768436665923,0.00344976,3343.3,3341.7,3.3905998]
[1768436666224,0.00344976,3343.3,3341.9,0.14962]
[1768436667334,0.00344976,3343.3,3342.3,0.95510087]
[1768436669419,0.00344976,3343.3,3341.9,0.14962]
[1768436669624,0.00344976,3343.3,3342.2,0.95510087]
[1768436671439,0.00344976,3343.3,3342.4,0.95510087]
[1768436672042,3.43455261,3343.3,3341.6,1.17]
[1768436672239,3.43455261,3343.3,3342.0,0.95510087]
[1768436672536,4.38965348,3343.3,3342.0,0.95510087]
[1768436672739,3.43110285,3343.2,3342.0,0.95510087]
[1768436674041,1.10811063,3343.3,3341.7,0.95510087]
[1768436674042,4.38620372,3343.1,3341.7,0.95510087]
[1768436674533,3.43110285,3343.1,3341.9,0.95510087]
[1768436674739,0.93326232,3343.0,3341.9,0.95510087]
[1768436674939,0.93326232,3342.9,3341.9,0.95510087]
[1768436675239,3.43110285,3343.1,3341.9,0.95510087]
[1768436675432,0.93338194,3343.0,3341.9,0.95510087]
[1768436675635,0.93338194,3342.9,3341.9,0.95510087]
[1768436675832,3.43110285,3343.1,3341.9,0.95510087]
[1768436676033,0.93338341,3343.0,3342.2,0.95510087]